bitfinex-derivatives/quotes_BTCF0:USTF0_20241005
["timestamp","ask_amount","ask_price","bid_price","bid_amount"]
[1728119943042,0.01,62237.0,62236.0,0.058234]
[1728119944744,0.01,62237.0,62236.0,0.002]
[1728119945236,0.01,62237.0,62236.0,0.05007527]
[1728119945433,0.01,62237.0,62236.0,0.002]
[1728119946634,0.3708,62237.0,62236.0,0.002]
[1728119947044,0.427033,62237.0,62236.0,0.002]
[1728119947248,0.491433,62237.0,62236.0,0.002]
[1728119948550,0.056238,62232.0,62231.0,0.03145023]
[1728119948853,0.176238,62232.0,62231.0,0.03145023]
[1728119949942,0.176238,62232.0,62231.0,0.15490977]
[1728119951148,0.187238,62232.0,62231.0,0.15590977]
[1728119951649,0.011,62232.0,62231.0,0.21214877]
[1728119953043,0.056238,62233.0,62231.0,0.21214877]
[1728119953242,0.056238,62233.0,62232.0,0.21865316]
[1728119953547,0.176238,62233.0,62232.0,0.21865316]
[1728119954450,0.177238,62233.0,62232.0,0.21965316]
[1728119954746,0.177238,62233.0,62232.0,0.12345954]
[1728119954952,0.057238,62233.0,62232.0,0.12345954]
[1728119955243,0.177238,62233.0,62232.0,0.15535954]
[1728119956450,0.001,62233.0,62232.0,0.21159754]
[1728119956752,0.001,62233.0,62232.0,0.18069754]
[1728119957850,0.001,62233.0,62232.0,0.12445954]
[1728119957851,0.177237,62233.0,62232.0,0.12445954]
[1728119958046,0.24762733,62233.0,62232.0,0.002]
[1728119958243,0.29695104,62233.0,62232.0,0.002]
[1728119958439,0.3852576,62233.0,62231.0,0.02586476]
[1728119958640,0.17734864,62232.0,62228.0,0.056241]
[1728119958846,0.33726752,62229.0,62228.0,0.056241]
[1728119959152,0.11971404,62229.0,62228.0,0.056241]
[1728119959338,0.12663133,62229.0,62228.0,0.056241]
[1728119960041,0.17595491,62229.0,62228.0,0.056241]
[1728119960242,0.11971391,62229.0,62228.0,0.056241]
[1728119960440,0.07039033,62229.0,62228.0,0.056241]
[1728119960650,0.11971391,62229.0,62228.0,0.057241]
[1728119960850,0.03103989,62229.0,62228.0,0.057241]
[1728119961052,0.11971391,62229.0,62228.0,0.057241]
[1728119961254,0.03103989,62229.0,62228.0,0.057241]
[1728119961454,0.07039033,62229.0,62228.0,0.057241]
[1728119961753,0.07039033,62229.0,62228.0,0.058241]
[1728119961754,0.07139033,62229.0,62228.0,0.058241]
[1728119961952,0.24763133,62229.0,62228.0,0.002]
[1728119962154,0.29695568,62229.0,62228.0,0.002]
[1728119963147,0.29695568,62229.0,62228.0,0.058241]
[1728119964157,0.17695568,62229.0,62228.0,0.058241]
[1728119964951,0.057241,62229.0,62228.0,0.1806993]
[1728119966252,0.057241,62229.0,62228.0,0.1244583]
[1728119966458,0.538041,62229.0,62228.0,0.1244583]
[1728119966958,0.538041,62229.0,62228.0,0.20474455]
[1728119967253,0.538041,62229.0,62228.0,0.20472615]
[1728119967462,0.538041,62229.0,62228.0,0.1244583]
[1728119969545,0.538041,62229.0,62228.0,0.08224614]
[1728119970351,0.538041,62229.0,62228.0,0.002]
[1728119971355,0.538041,62229.0,62228.0,0.20470761]
[1728119971554,0.538041,62229.0,62228.0,0.002]
[1728119972459,0.538041,62229.0,62226.0,0.08023754]
[1728119972664,0.033,62228.0,62225.0,0.08023754]
[1728119972859,0.12,62226.0,62221.0,0.12507017]
[1728119973055,0.033,62228.0,62224.0,0.04814437]
[1728119973257,0.056245,62224.0,62223.0,0.04814437]
[1728119973461,0.056249,62220.0,62219.0,0.0037]
[1728119973654,0.05625,62219.0,62218.0,0.02874521]
[1728119973855,0.17625,62219.0,62216.0,0.417892]
[1728119974162,0.17625,62219.0,62216.0,0.417052]
[1728119974365,0.17625,62219.0,62216.0,0.44564089]
[1728119976164,0.18325,62219.0,62218.0,0.001]
[1728119976561,0.18325,62219.0,62216.0,0.44648089]
[1728119976562,0.18025,62219.0,62216.0,0.44648089]
[1728119976769,0.18525,62219.0,62216.0,0.44564089]
[1728119976977,0.18525,62219.0,62218.0,0.06418097]
[1728119977263,0.18525,62219.0,62216.0,0.38938889]
[1728119977264,0.056251,62218.0,62216.0,0.45440986]
[1728119977456,0.18925,62219.0,62218.0,0.001]
[1728119978068,0.55005,62219.0,62218.0,0.001]
[1728119978255,0.55005,62219.0,62218.0,0.04914023]
[1728119978256,0.54405,62219.0,62218.0,0.04914023]
[1728119978459,0.54405,62219.0,62218.0,0.001]
[1728119979067,0.4858,62219.0,62216.0,0.04914023]
[1728119979257,0.4858,62219.0,62216.0,0.001]
[1728119979258,0.056251,62217.0,62216.0,0.001]
[1728119979965,0.12666433,62217.0,62216.0,0.001]
[1728119980365,0.056252,62216.0,62215.0,0.00241056]
[1728119980564,0.20730203,62216.0,62215.0,0.00241056]
[1728119980768,0.056258,62210.0,62209.0,0.0037]
[1728119981068,0.08730803,62210.0,62206.0,0.12]
[1728119981274,0.03105003,62209.0,62206.0,0.12]
[1728119981475,0.03105003,62209.0,62206.0,0.176261]
[1728119982073,0.03105003,62209.0,62207.0,0.05626]
[1728119982963,0.04305003,62209.0,62207.0,0.05626]
[1728119983263,0.03105003,62208.0,62207.0,0.05626]
[1728119983567,0.03105003,62208.0,62207.0,0.05726]
[1728119984474,0.3838,62209.0,62207.0,0.001]
[1728119984776,0.012,62208.0,62207.0,0.002]
[1728119985366,0.04305146,62208.0,62207.0,0.05826]
[1728119985672,0.013,62208.0,62207.0,0.002]
[1728119985858,0.04405136,62208.0,62207.0,0.002]
[1728119986063,0.013,62208.0,62207.0,0.05826]
[1728119987467,0.013,62208.0,62207.0,0.122]
[1728119987669,0.0439,62208.0,62207.0,0.122]
[1728119987877,0.0559,62208.0,62207.0,0.122]
[1728119988076,0.01568285,62208.0,62207.0,0.122]
[1728119988276,0.012,62208.0,62207.0,0.17826]
[1728119989576,0.012,62208.0,62207.0,0.30075831]
[1728119990072,0.012,62208.0,62207.0,0.122]
[1728119992670,0.012,62208.0,62207.0,0.25835579]
[1728119992877,0.012,62208.0,62207.0,0.20209579]
[1728119993071,0.012,62208.0,62207.0,0.17826]
[1728119993273,0.012,62208.0,62207.0,0.25835579]
[1728119993575,0.012,62208.0,62207.0,0.3808542]
[1728119994376,0.012,62208.0,62207.0,0.30075841]
[1728119994572,0.012,62208.0,62207.0,0.17826]
[1728119994879,0.012,62208.0,62207.0,0.002]
[1728119994880,0.06826,62208.0,62207.0,0.002]
[1728119997785,0.42906,62208.0,62207.0,0.002]
[1728120000277,0.3728,62208.0,62207.0,0.122]
[1728120000476,0.3728,62208.0,62207.0,0.17826]
[1728120001580,0.3728,62208.0,62207.0,0.05826]
[1728120001981,0.3728,62208.0,62207.0,0.17826]
[1728120003196,0.3728,62208.0,62207.0,0.30076267]
[1728120004477,0.3728,62208.0,62207.0,0.24450267]
[1728120004674,0.3728,62208.0,62207.0,0.30076267]
[1728120004876,0.012,62208.0,62207.0,0.30076267]
[1728120005183,0.3728,62208.0,62207.0,0.30076267]
[1728120005376,0.012,62208.0,62207.0,0.30076267]
[1728120005583,0.3728,62208.0,62207.0,0.30076267]
[1728120006079,0.42906,62208.0,62207.0,0.12450267]
[1728120007880,0.42906,62208.0,62207.0,0.22081895]
[1728120008082,0.42906,62208.0,62207.0,0.12450267]
[1728120008277,0.37275445,62208.0,62207.0,0.27158494]
[1728120009887,0.37275445,62208.0,62207.0,0.27117419]
[1728120011197,0.41706,62208.0,62207.0,0.27117419]
[1728120014592,0.41706,62208.0,62207.0,0.27121787]
[1728120015790,0.41706,62208.0,62207.0,0.27120957]
[1728120017884,0.41706,62208.0,62207.0,0.12450899]
[1728120018094,0.53682334,62208.0,62207.0,0.002]
[1728120019896,0.59448066,62208.0,62204.0,0.02927851]
[1728120020093,0.20872066,62207.0,62203.0,0.176264]
[1728120020392,0.11976334,62206.0,62203.0,0.176264]
[1728120020593,0.11976334,62205.0,62202.0,0.02929713]
[1728120020798,0.11976334,62204.0,62199.0,0.176268]
[1728120020998,0.11976334,62203.0,62199.0,0.20549563]
[1728120021198,0.11976334,62202.0,62200.0,0.056266]
[1728120021387,0.11976334,62201.0,62200.0,0.056266]
[1728120021591,0.07041967,62201.0,62200.0,0.056266]
[1728120022888,0.07241967,62201.0,62200.0,0.056266]
[1728120023096,0.12376334,62201.0,62200.0,0.057266]
[1728120024401,0.12376362,62201.0,62200.0,0.057266]
[1728120025095,0.004,62201.0,62200.0,0.32679965]
[1728120031094,0.004,62201.0,62200.0,0.17977333]
[1728120032603,0.004,62201.0,62200.0,0.32683638]
[1728120033001,0.004,62201.0,62200.0,0.49757693]
[1728120033200,0.32458111,62207.0,62206.0,0.176261]
[1728120033411,0.50200163,62207.0,62206.0,0.12]
[1728120033908,0.38223863,62207.0,62206.0,0.12]
[1728120034112,0.44434404,62207.0,62206.0,0.12]
[1728120034307,0.50200156,62207.0,62206.0,0.12]
[1728120034611,0.50200156,62207.0,62206.0,0.177261]
[1728120034612,0.50400156,62207.0,62206.0,0.177261]
[1728120035116,0.50400156,62207.0,62206.0,0.178261]
[1728120035310,0.44634404,62207.0,62206.0,0.178261]
[1728120038213,0.44634404,62207.0,62206.0,0.058261]
[1728120038515,0.44634404,62207.0,62206.0,0.178261]
[1728120038718,0.44634404,62207.0,62206.0,0.20724794]
[1728120038908,0.44634307,62207.0,62206.0,0.20724794]
[1728120039106,0.12176196,62207.0,62206.0,0.20724794]
[1728120040307,0.12176196,62207.0,62206.0,0.32975357]
[1728120040308,0.002,62207.0,62206.0,0.32975357]
[1728120044610,0.002,62207.0,62206.0,0.20975357]
[1728120045117,0.002,62207.0,62206.0,0.32975357]
[1728120046516,0.002,62207.0,62206.0,0.47682792]
[1728120048208,0.002,62207.0,62206.0,0.20724794]
[1728120048209,0.07241887,62207.0,62206.0,0.20724794]
[1728120048417,0.12176198,62207.0,62206.0,0.20724794]
[1728120055313,0.002,62207.0,62206.0,0.28766032]
[1728120055513,0.002,62207.0,62206.0,0.20724794]
[1728120056417,0.002,62207.0,62206.0,0.08724794]
[1728120056721,0.002,62207.0,62206.0,0.28766032]
[1728120056923,0.002,62207.0,62206.0,0.20724794]
[1728120061321,0.002,62207.0,62206.0,0.28766032]
[1728120062125,0.002,62207.0,62206.0,0.41016596]
[1728120070228,0.12176198,62207.0,62206.0,0.20724794]
[1728120070739,0.12176198,62207.0,62206.0,0.14998694]
[1728120070928,0.12176198,62207.0,62206.0,0.05483843]
[1728120071635,0.12176198,62207.0,62206.0,0.11109943]
[1728120071841,0.12176199,62207.0,62206.0,0.11109943]
[1728120072333,0.12176199,62207.0,62206.0,0.14047703]
[1728120078228,0.002,62207.0,62206.0,0.41039059]
[1728120078435,0.05626,62208.0,62206.0,0.52292536]
[1728120078636,0.05626,62208.0,62207.0,0.26991356]
[1728120080143,0.05726,62208.0,62207.0,0.27091356]
[1728120080838,0.001,62208.0,62207.0,0.12450566]
[1728120081141,0.001,62208.0,62207.0,0.32719084]
[1728120081332,0.001,62208.0,62207.0,0.35769084]
[1728120081641,0.001,62208.0,62207.0,0.21125953]
[1728120082230,0.001,62208.0,62207.0,0.35765224]
[1728120082838,0.0112,62212.0,62211.0,0.056257]
[1728120083030,0.067453,62215.0,62212.0,0.056256]
[1728120083233,0.067453,62215.0,62214.0,0.12]
[1728120083234,0.056253,62215.0,62214.0,0.12]
[1728120083438,0.3608,62217.0,62216.0,0.056252]
[1728120083638,0.0112,62222.0,62221.0,0.056248]
[1728120083844,0.00241176,62223.0,62222.0,0.056247]
[1728120084135,0.0112,62227.0,62226.0,0.056243]
[1728120084339,0.0112,62230.0,62229.0,0.056241]
[1728120084545,0.3608,62231.0,62229.0,0.39489751]
[1728120084732,0.3608,62231.0,62230.0,0.12249953]
[1728120084937,0.3608,62231.0,62230.0,0.17873953]
[1728120085438,0.48051541,62231.0,62230.0,0.05624]
[1728120085745,0.53815002,62231.0,62230.0,0.05624]
[1728120087137,0.65677341,62231.0,62230.0,0.05624]
[1728120087333,0.71440802,62231.0,62230.0,0.05724]
[1728120087643,0.64066862,62231.0,62230.0,0.05824]
[1728120088535,0.48051541,62231.0,62230.0,0.05824]
[1728120088743,0.53814937,62231.0,62230.0,0.08894]
[1728120089732,0.27974113,62231.0,62230.0,0.44974]
[1728120089933,0.11971541,62231.0,62230.0,0.23658174]
[1728120090237,0.11971541,62231.0,62230.0,0.32240147]
[1728120091030,0.17495464,62231.0,62230.0,0.32240147]
[1728120091240,0.03103371,62231.0,62230.0,0.32240147]
[1728120091435,0.03103371,62231.0,62230.0,0.80548147]
[1728120091630,0.03103371,62231.0,62230.0,1.40548147]
[1728120091933,0.03103371,62231.0,62230.0,0.32340147]
[1728120092537,0.03203371,62231.0,62230.0,0.32440147]
[1728120093040,0.03303371,62231.0,62230.0,0.35670147]
[1728120093446,0.002,62231.0,62230.0,0.35670147]
[1728120093738,0.002,62231.0,62230.0,1.00477496]
[1728120093938,0.002,62231.0,62230.0,0.40477496]
[1728120094538,0.002,62231.0,62230.0,0.55979322]
[1728120094740,0.002,62231.0,62230.0,1.64187322]
[1728120095439,0.002,62231.0,62230.0,1.59379973]
[1728120095947,0.002,62231.0,62230.0,1.64187322]
[1728120096541,0.002,62231.0,62230.0,1.59379973]
[1728120097040,0.002,62231.0,62230.0,1.11171973]
[1728120097639,0.002,62231.0,62230.0,0.51171973]
[1728120097839,0.002,62231.0,62230.0,0.55979322]
[1728120098446,0.002,62231.0,62230.0,0.15091973]
[1728120098643,0.002,62231.0,62230.0,0.51171973]
[1728120102543,0.002,62231.0,62230.0,0.55979322]
[1728120104151,0.002,62231.0,62230.0,1.15979322]
[1728120104348,0.002,62231.0,62230.0,0.51171973]
[1728120105647,0.002,62231.0,62230.0,0.15091973]
[1728120105851,0.002,62231.0,62230.0,0.51171973]
[1728120108152,0.002,62231.0,62230.0,1.11171973]
[1728120108351,0.002,62231.0,62230.0,0.51171973]
[1728120108956,0.002,62231.0,62230.0,0.75091973]
[1728120109148,0.002,62231.0,62230.0,0.51171973]
[1728120110257,0.002,62231.0,62230.0,0.15091973]
[1728120110552,0.002,62231.0,62230.0,0.51171973]
[1728120110957,0.002,62231.0,62230.0,1.11171973]
[1728120111257,0.002,62231.0,62230.0,0.15091973]
[1728120111463,0.002,62231.0,62230.0,0.12011973]
[1728120111650,0.002,62231.0,62230.0,0.48091973]
[1728120115555,0.0074,62237.0,62236.0,0.056234]
[1728120115768,1.14158,62239.0,62238.0,0.056232]
[1728120115961,1.1401,62239.0,62238.0,0.17866162]
[1728120117552,1.03659884,62239.0,62238.0,0.85750962]
[1728120118047,1.03659884,62239.0,62238.0,1.05132631]
[1728120118452,1.03659884,62239.0,62238.0,1.05232631]
[1728120118650,0.10316019,62239.0,62238.0,1.05232631]
[1728120118852,0.0037,62245.0,62244.0,0.056227]
[1728120119059,0.0324,62248.0,62247.0,0.056224]
[1728120119264,0.0324,62248.0,62247.0,0.83226105]
[1728120120053,0.0324,62248.0,62247.0,0.32279332]
[1728120120245,0.0324,62248.0,62247.0,0.63493483]
[1728120120450,0.0324,62248.0,62247.0,0.49079513]
[1728120121454,0.0324,62248.0,62247.0,0.43503292]
[1728120122254,0.0324,62248.0,62247.0,0.32399633]
[1728120123161,0.0324,62248.0,62247.0,0.68479633]
[1728120123357,0.02251463,62249.0,62248.0,0.056223]
[1728120124062,0.02251463,62249.0,62247.0,0.002]
[1728120124063,0.056223,62248.0,62247.0,0.002]
[1728120124249,0.056223,62248.0,62246.0,0.0286135]
[1728120124457,0.056225,62246.0,62243.0,0.12]
[1728120124953,0.056225,62246.0,62243.0,0.056228]
[1728120125155,0.056225,62246.0,62243.0,0.176228]
[1728120125951,0.056225,62246.0,62243.0,0.177228]
[1728120126559,0.0311,62245.0,62243.0,0.177228]
[1728120126855,0.0311,62245.0,62243.0,0.178228]
[1728120127456,0.0308,62244.0,62243.0,0.178228]
[1728120127653,0.0308,62244.0,62243.0,0.058228]
[1728120128557,0.0318,62244.0,62243.0,0.058228]
[1728120130360,0.0318,62244.0,62243.0,0.17946654]
[1728120131261,0.0318,62244.0,62243.0,0.27549696]
[1728120132364,0.0318,62244.0,62243.0,0.17946654]
[1728120134265,0.0318,62244.0,62243.0,0.29946654]
[1728120134465,0.0318,62244.0,62243.0,0.39549696]
[1728120134661,0.001,62244.0,62243.0,0.29946654]
[1728120136069,0.0037,62253.0,62243.0,0.61087257]
[1728120136269,0.00240959,62260.0,62252.0,0.12]
[1728120136270,0.3608,62254.0,62252.0,0.12]
[1728120136566,0.3608,62254.0,62253.0,0.32162026]
[1728120137669,0.3608,62254.0,62253.0,0.057219]
[1728120137670,0.43116041,62254.0,62253.0,0.057219]
[1728120138054,0.43216041,62254.0,62253.0,0.058219]
[1728120139258,0.39282669,62254.0,62253.0,0.058219]
[1728120142173,0.3618,62254.0,62253.0,0.058219]
[1728120144376,0.001,62254.0,62253.0,0.058219]
[1728120144577,0.03202638,62254.0,62253.0,0.058219]
[1728120145572,0.00240959,62260.0,62253.0,0.058219]
[1728120145573,0.25974033,62261.0,62260.0,0.056213]
[1728120145777,0.25974033,62261.0,62260.0,0.44068431]
[1728120146172,0.25974033,62261.0,62260.0,0.29652159]
[1728120146671,0.0312,62267.0,62260.0,0.29652159]
[1728120146672,0.392,62267.0,62263.0,0.056209]
[1728120146867,0.392,62267.0,62265.0,0.07990777]
[1728120147264,0.392,62267.0,62265.0,0.11952007]
[1728120148777,0.392,62267.0,62265.0,0.12152007]
[1728120150486,0.392,62267.0,62265.0,0.20138915]
[1728120150879,0.512,62267.0,62265.0,0.08186908]
[1728120151182,0.51356001,62267.0,62265.0,0.20131946]
[1728120151569,0.51356001,62267.0,62265.0,0.08186908]
[1728120152472,0.51356001,62267.0,62265.0,0.002]
[1728120152870,0.086608,62266.0,62265.0,0.002]
[1728120159180,0.086608,62266.0,62265.0,0.058208]
[1728120161478,0.056208,62266.0,62265.0,0.058208]
[1728120161681,0.056208,62266.0,62265.0,0.178208]
[1728120161980,0.36228,62267.0,62266.0,0.056207]
[1728120161981,0.3608,62267.0,62266.0,0.056207]
[1728120162575,0.4311489,62267.0,62266.0,0.056207]
[1728120162771,0.07034707,62267.0,62266.0,0.056207]
[1728120162977,0.03102162,62267.0,62266.0,0.056207]
[1728120163171,0.056203,62271.0,62269.0,0.056204]
[1728120163374,0.03101973,62270.0,62269.0,0.056204]
[1728120164484,0.03101973,62270.0,62269.0,0.057204]
[1728120165271,0.3608,62275.0,62269.0,0.001]
[1728120165479,0.03101914,62274.0,62272.0,0.056202]
[1728120165679,0.416999,62275.0,62272.0,0.056202]
[1728120165680,0.03101914,62273.0,62272.0,0.056202]
[1728120166474,0.418479,62275.0,62272.0,0.056202]
[1728120166679,0.03101886,62274.0,62272.0,0.056202]
[1728120166979,0.03101886,62273.0,62272.0,0.056202]
[1728120167191,0.03101886,62273.0,62272.0,0.057202]
[1728120167476,0.418519,62275.0,62272.0,0.13707108]
[1728120167780,0.416999,62275.0,62273.0,0.12]
[1728120169389,0.3608,62275.0,62273.0,0.177201]
[1728120169574,0.0562,62274.0,62273.0,0.177201]
[1728120169774,0.3608,62275.0,62273.0,0.177201]
[1728120170083,0.4248,62276.0,62273.0,0.178201]
[1728120170275,0.4248,62276.0,62275.0,0.06395922]
[1728120170276,0.120198,62276.0,62275.0,0.06395922]
[1728120170481,0.480998,62276.0,62275.0,0.06395922]
[1728120171079,0.120198,62276.0,62275.0,0.06395922]
[1728120171280,0.480998,62276.0,62275.0,0.06395922]
[1728120171585,0.480998,62276.0,62275.0,0.06496362]
[1728120172483,0.480998,62276.0,62275.0,0.001]
[1728120172985,0.120198,62276.0,62275.0,0.001]
[1728120173185,0.480998,62276.0,62275.0,0.002]
[1728120174382,0.120198,62276.0,62275.0,0.002]
[1728120174587,0.480998,62276.0,62275.0,0.002]
[1728120174979,0.120198,62276.0,62275.0,0.002]
[1728120175487,0.480998,62276.0,62275.0,0.002]
[1728120175690,0.120198,62276.0,62275.0,0.002]
[1728120176083,0.480998,62276.0,62275.0,0.002]
[1728120176584,0.120198,62276.0,62275.0,0.002]
[1728120176785,0.480998,62276.0,62275.0,0.002]
[1728120177483,0.120198,62276.0,62275.0,0.002]
[1728120177887,0.480998,62276.0,62275.0,0.002]
[1728120180081,0.448798,62276.0,62275.0,0.002]
[1728120181487,0.087998,62276.0,62275.0,0.002]
[1728120181688,0.448798,62276.0,62275.0,0.002]
[1728120181988,0.087998,62276.0,62275.0,0.002]
[1728120182188,0.448798,62276.0,62275.0,0.002]
[1728120182794,0.15834037,62276.0,62275.0,0.002]
[1728120182995,0.51914037,62276.0,62275.0,0.002]
[1728120184097,0.15834037,62276.0,62275.0,0.002]
[1728120184296,0.51914037,62276.0,62275.0,0.002]
[1728120188291,0.56842977,62276.0,62275.0,0.002]
[1728120189382,0.53662962,62276.0,62275.0,0.002]
[1728120189590,0.64035302,62276.0,62275.0,0.002]
[1728120189792,0.48043162,62276.0,62275.0,0.058199]
[1728120190804,0.3608,62276.0,62275.0,0.12223226]
[1728120191386,0.3608,62276.0,62275.0,0.058199]
[1728120192296,0.00610951,62284.0,62282.0,0.056193]
[1728120192483,0.05860051,62284.0,62283.0,0.04802108]
[1728120192689,0.056192,62283.0,62282.0,0.176193]
[1728120192997,0.056192,62283.0,62282.0,0.056193]
[1728120193497,0.056192,62283.0,62282.0,0.057193]
[1728120194388,0.00240951,62284.0,62283.0,0.056192]
[1728120195792,0.00240951,62284.0,62283.0,0.057192]
[1728120196896,0.00240951,62284.0,62283.0,0.058192]
[1728120197496,0.0037,62292.0,62283.0,0.002]
[1728120197695,0.07032405,62291.0,62290.0,0.056185]
[1728120197900,0.11960071,62291.0,62290.0,0.056185]
[1728120198799,0.11959831,62291.0,62290.0,0.056185]
[1728120199298,0.11959831,62291.0,62290.0,0.057185]
[1728120199492,0.11959831,62291.0,62290.0,0.058185]
[1728120200807,0.27974749,62291.0,62290.0,0.058185]
[1728120201106,0.27974749,62291.0,62290.0,0.057185]
[1728120201302,0.27974749,62291.0,62290.0,0.058185]
[1728120201599,0.11959831,62291.0,62290.0,0.058185]
[1728120203311,0.03101004,62291.0,62290.0,1.52914273]
[1728120203508,0.0037,62300.0,62299.0,0.056177]
[1728120203803,0.03100432,62301.0,62299.0,0.12]
[1728120204008,0.05858253,62304.0,62299.0,0.176177]
[1728120204009,0.07030967,62300.0,62299.0,0.176177]
[1728120204806,0.11957543,62300.0,62299.0,0.176177]
[1728120205011,0.23039007,62300.0,62299.0,0.176177]
[1728120205308,0.19108472,62300.0,62299.0,0.177177]
[1728120205504,0.11957543,62300.0,62299.0,0.177177]
[1728120205705,0.1600804,62301.0,62299.0,0.122]
[1728120205904,0.1600804,62301.0,62300.0,0.056176]
[1728120207403,0.1600804,62301.0,62300.0,0.057176]
[1728120208510,0.1600804,62301.0,62300.0,0.058176]
[1728120210912,0.2162564,62301.0,62300.0,0.058176]
[1728120211119,0.3362564,62301.0,62300.0,0.058176]
[1728120211418,0.3362564,62301.0,62300.0,0.1218371]
[1728120212116,0.2162564,62301.0,62300.0,0.1218371]
[1728120212819,0.2162564,62301.0,62300.0,0.058176]
[1728120212820,0.33582922,62301.0,62300.0,0.058176]
[1728120213117,0.17574928,62301.0,62300.0,0.058176]
[1728120216008,0.11957328,62301.0,62300.0,0.058176]
[1728120216409,0.03100355,62301.0,62300.0,0.002]
[1728120216717,0.08856973,62301.0,62300.0,0.058176]
[1728120216911,0.21601906,62303.0,62301.0,0.056176]
[1728120216912,0.15984506,62302.0,62301.0,0.056176]
[1728120217718,0.19914943,62302.0,62301.0,0.056176]
[1728120218125,0.11957329,62302.0,62301.0,0.057176]
[1728120218323,0.15107329,62302.0,62301.0,0.057176]
[1728120219019,0.15107328,62302.0,62301.0,0.058176]
[1728120219714,0.32723737,62302.0,62301.0,0.058176]
[1728120219921,0.20766409,62302.0,62301.0,0.058176]
[1728120220131,0.0315,62302.0,62301.0,0.058176]
[1728120221411,0.00240853,62304.0,62303.0,0.056174]
[1728120221725,0.00240853,62304.0,62303.0,0.176174]
[1728120222519,0.00240853,62304.0,62303.0,0.177174]
[1728120223115,0.092366,62312.0,62311.0,0.056167]
[1728120223116,0.0037,62312.0,62311.0,0.056167]
[1728120223320,0.3608,62324.0,62311.0,0.176167]
[1728120223321,0.416963,62315.0,62311.0,0.176167]
[1728120224026,0.416963,62315.0,62312.0,0.056166]
[1728120224227,0.05616,62319.0,62317.0,0.056161]
[1728120224431,0.05616,62319.0,62318.0,0.12]
[1728120224624,0.12,62322.0,62315.0,0.12]
[1728120224834,0.056162,62316.0,62313.0,0.067364]
[1728120225017,0.3608,62324.0,62314.0,0.04781855]
[1728120225018,0.3645,62324.0,62314.0,0.04781855]
[1728120225224,0.05616,62318.0,62315.0,0.056163]
[1728120225933,0.05616,62318.0,62315.0,0.12]
[1728120226119,0.05616,62318.0,62317.0,0.056161]
[1728120226824,0.12,62320.0,62315.0,0.121]
[1728120227128,0.056162,62317.0,62315.0,0.121]
[1728120227426,0.056162,62316.0,62315.0,0.121]
[1728120227929,0.17571049,62316.0,62315.0,0.121]
[1728120228333,0.17571049,62316.0,62315.0,0.122]
[1728120228527,0.17571049,62316.0,62315.0,0.178163]
[1728120228726,0.17571049,62316.0,62315.0,0.177163]
[1728120229230,0.17571049,62316.0,62313.0,0.12]
[1728120229530,0.11954849,62315.0,62314.0,0.056164]
[1728120231425,0.11954849,62315.0,62314.0,0.057164]
[1728120232624,0.2955965,62315.0,62314.0,0.057164]
[1728120232831,0.2955965,62315.0,62314.0,0.058164]
[1728120233130,0.29559332,62315.0,62314.0,0.058164]
[1728120233522,0.11954531,62315.0,62314.0,0.058164]
[1728120233721,0.08024815,62315.0,62314.0,0.058164]
[1728120234025,0.11954236,62315.0,62314.0,0.058164]
[1728120234921,0.23221001,62316.0,62314.0,0.058164]
[1728120235118,0.056162,62316.0,62314.0,0.058164]
[1728120236325,0.056162,62316.0,62314.0,0.057164]
[1728120236629,0.056162,62316.0,62314.0,0.058164]
[1728120237242,0.076162,62321.0,62314.0,0.058164]
[1728120237424,0.056161,62318.0,62314.0,0.058164]
[1728120238022,0.056163,62315.0,62314.0,0.002]
[1728120238531,0.18246106,62315.0,62314.0,0.002]
[1728120239232,0.18246106,62315.0,62314.0,0.001]
[1728120239439,0.18246106,62315.0,62314.0,0.002]
[1728120240737,0.18246106,62315.0,62308.0,0.372]
[1728120240738,1.20773913,62315.0,62308.0,0.372]
[1728120240932,1.20773913,62315.0,62308.0,0.3608]
[1728120240933,0.176168,62309.0,62308.0,0.3608]
[1728120242023,0.176168,62309.0,62308.0,0.3618]
[1728120242429,0.176168,62309.0,62308.0,0.3608]
[1728120242728,0.176168,62309.0,62308.0,0.3628]
[1728120242924,0.056168,62309.0,62308.0,0.002]
[1728120243129,0.20716875,62309.0,62308.0,0.002]
[1728120243546,0.20816875,62309.0,62308.0,0.002]
[1728120244849,1.28964875,62309.0,62308.0,0.002]
[1728120245050,0.056174,62303.0,62302.0,0.0112]
[1728120245249,0.056174,62303.0,62296.0,0.05618]
[1728120245250,0.056176,62301.0,62299.0,0.02863404]
[1728120245546,0.0303,62302.0,62296.0,0.06738]
[1728120245754,0.056177,62299.0,62296.0,0.05618]
[1728120246140,0.056177,62299.0,62297.0,0.056179]
[1728120246344,0.056177,62299.0,62294.0,0.3608]
[1728120246649,0.056177,62299.0,62293.0,0.0112]
[1728120246650,0.056182,62294.0,62293.0,0.0112]
[1728120246851,0.056187,62288.0,62287.0,0.0112]
[1728120247045,0.056187,62288.0,62283.0,0.12]
[1728120247240,0.056187,62288.0,62285.0,0.12]
[1728120247550,0.056184,62292.0,62285.0,0.12]
[1728120247755,0.056185,62291.0,62288.0,0.12]
[1728120248353,0.056185,62291.0,62283.0,0.0112]
[1728120248354,0.12,62289.0,62283.0,0.0112]
[1728120248542,0.12,62289.0,62282.0,0.1237]
[1728120248543,0.12,62289.0,62282.0,0.12]
[1728120249052,0.12,62289.0,62284.0,0.12]
[1728120249554,0.056189,62286.0,62284.0,0.12]
[1728120250055,0.03101045,62285.0,62284.0,0.12]
[1728120250444,0.03101045,62285.0,62284.0,0.121]
[1728120250853,0.08720045,62285.0,62284.0,0.121]
[1728120251449,0.08720045,62285.0,62284.0,0.001]
[1728120251755,0.12651544,62285.0,62284.0,0.001]